[Event "Live Chess"]
[Site "Chess.com"]
[Date "2024.06.02"]
[Round "-"]
[White "Hoogleboogle"]
[Black "StoreySniper"]
[Result "0-1"]
[WhiteElo "1309"]
[BlackElo "2500"]
[TimeControl "300"]
[EndTime "4:25:23 PDT"]
[Termination "StoreySniper won by checkmate"]

1. d4 {[%clk 0:04:53.6]} 1... e5 {[%clk 0:04:57.7]} 2. dxe5 {[%clk 0:04:50.1]}
2... Nc6 {[%clk 0:04:56.2]} 3. Nf3 {[%clk 0:04:43.9]} 3... Bc5 {[%clk 0:04:51]}
4. e3 {[%clk 0:04:39.6]} 4... Qe7 {[%clk 0:04:49.4]} 5. Nc3 {[%clk 0:04:36.6]}
5... Nxe5 {[%clk 0:04:46.8]} 6. Nxe5 {[%clk 0:04:24.9]} 6... Qxe5 {[%clk
0:04:44.6]} 7. Bd3 {[%clk 0:04:19.2]} 7... Nf6 {[%clk 0:04:40]} 8. O-O {[%clk
0:04:17.8]} 8... d5 {[%clk 0:04:36.2]} 9. Ne2 {[%clk 0:04:05.9]} 9... O-O {[%clk
0:04:32.1]} 10. c3 {[%clk 0:03:59.3]} 10... Bg4 {[%clk 0:04:29.9]} 11. h3 {[%clk
0:03:55.7]} 11... Bh5 {[%clk 0:04:26.6]} 12. g4 {[%clk 0:03:48.4]} 12... Nxg4
{[%clk 0:04:21.6]} 13. hxg4 {[%clk 0:03:21]} 13... Bxg4 {[%clk 0:04:21.5]} 14.
Qe1 {[%clk 0:02:48.5]} 14... Qh5 {[%clk 0:04:21.4]} 15. Ng3 {[%clk 0:02:41.8]}
15... Qh3 {[%clk 0:04:13.6]} 16. f3 {[%clk 0:02:29.7]} 16... Bd6 {[%clk
0:04:05.3]} 17. fxg4 {[%clk 0:02:25.2]} 17... Bxg3 {[%clk 0:04:02.9]} 18. Qe2
{[%clk 0:02:17.7]} 18... Rae8 {[%clk 0:03:55]} 19. Qg2 {[%clk 0:02:12.9]} 19...
Qxg4 {[%clk 0:03:50.5]} 20. Be2 {[%clk 0:01:50.1]} 20... Qg6 {[%clk 0:03:41.6]}
21. Rf3 {[%clk 0:01:41.5]} 21... Bd6 {[%clk 0:03:36.3]} 22. Qxg6 {[%clk
0:01:28.2]} 22... fxg6 {[%clk 0:03:32.5]} 23. Rxf8+ {[%clk 0:01:25.3]} 23...
Kxf8 {[%clk 0:03:27.6]} 24. Bd2 {[%clk 0:01:22]} 24... Bc5 {[%clk 0:03:23.6]}
25. Rf1+ {[%clk 0:01:19.4]} 25... Ke7 {[%clk 0:03:22.5]} 26. Rf3 {[%clk
0:01:15]} 26... c6 {[%clk 0:03:20.1]} 27. Kf2 {[%clk 0:01:13.6]} 27... h5 {[%clk
0:03:17.1]} 28. Rg3 {[%clk 0:01:07.6]} 28... Rf8+ {[%clk 0:03:13.1]} 29. Bf3
{[%clk 0:01:06.2]} 29... Rf6 {[%clk 0:03:10.3]} 30. b4 {[%clk 0:01:00.9]} 30...
Bd6 {[%clk 0:03:07.6]} 31. Rg2 {[%clk 0:00:56.4]} 31... h4 {[%clk 0:03:03.3]}
32. Rg1 {[%clk 0:00:51.1]} 32... Bg3+ {[%clk 0:03:01.8]} 33. Kg2 {[%clk
0:00:47.7]} 33... g5 {[%clk 0:02:57.5]} 34. a4 {[%clk 0:00:42.4]} 34... g4
{[%clk 0:02:52.7]} 35. Bxg4 {[%clk 0:00:34.3]} 35... Rf2+ {[%clk 0:02:51.8]} 36.
Kh3 {[%clk 0:00:32.5]} 36... Rh2# {[%clk 0:02:50.9]} 0-1

[Event "Live Chess"]
[Site "Chess.com"]
[Date "2024.06.02"]
[Round "-"]
[White "Kyrylo7770"]
[Black "vincents82"]
[Result "0-1"]
[WhiteElo "1650"]
[BlackElo "1998"]
[TimeControl "300"]
[EndTime "4:25:34 PDT"]
[Termination "vincents82 won by checkmate"]

1. d4 {[%clk 0:04:59.3]} 1... d5 {[%clk 0:04:59.1]} 2. Nf3 {[%clk 0:04:58.8]}
2... Nf6 {[%clk 0:04:58.3]} 3. Bg5 {[%clk 0:04:58.5]} 3... c6 {[%clk 0:04:56.3]}
4. e3 {[%clk 0:04:58]} 4... Bf5 {[%clk 0:04:55.5]} 5. c3 {[%clk 0:04:57.5]} 5...
e6 {[%clk 0:04:54.7]} 6. Bd3 {[%clk 0:04:56.7]} 6... Bxd3 {[%clk 0:04:53.9]} 7.
Qxd3 {[%clk 0:04:56]} 7... Nbd7 {[%clk 0:04:53.6]} 8. h4 {[%clk 0:04:55]} 8...
h6 {[%clk 0:04:52.2]} 9. Bf4 {[%clk 0:04:53.8]} 9... Be7 {[%clk 0:04:51.6]} 10.
Nbd2 {[%clk 0:04:51.3]} 10... O-O {[%clk 0:04:50.5]} 11. Be5 {[%clk 0:04:47.2]}
11... Nxe5 {[%clk 0:04:49]} 12. Nxe5 {[%clk 0:04:46.8]} 12... Nd7 {[%clk
0:04:48.1]} 13. Nef3 {[%clk 0:04:45.7]} 13... Bd6 {[%clk 0:04:45]} 14. g4 {[%clk
0:04:44.6]} 14... e5 {[%clk 0:04:43.8]} 15. Qf5 {[%clk 0:04:41.9]} 15... e4
{[%clk 0:04:31.3]} 16. g5 {[%clk 0:04:38.2]} 16... exf3 {[%clk 0:04:28.1]} 17.
gxh6 {[%clk 0:04:34.5]} 17... g6 {[%clk 0:04:26.7]} 18. Qxf3 {[%clk 0:04:31.9]}
18... Kh7 {[%clk 0:04:21.6]} 19. h5 {[%clk 0:04:31.2]} 19... Qf6 {[%clk
0:04:20]} 20. hxg6+ {[%clk 0:04:30.4]} 20... fxg6 {[%clk 0:04:17.8]} 21. Qg3
{[%clk 0:04:26]} 21... Bxg3 {[%clk 0:04:16.1]} 22. fxg3 {[%clk 0:04:25.4]} 22...
Qf2+ {[%clk 0:04:11.3]} 23. Kd1 {[%clk 0:04:24.9]} 23... Qxe3 {[%clk 0:04:10.1]}
24. Kc2 {[%clk 0:04:24.1]} 24... Rf2 {[%clk 0:04:07.2]} 25. Rad1 {[%clk
0:04:22.8]} 25... Nb6 {[%clk 0:04:04.3]} 26. Kb3 {[%clk 0:04:20.2]} 26... Rxd2
{[%clk 0:04:02.7]} 27. Rde1 {[%clk 0:04:18.4]} 27... Re2 {[%clk 0:04:01.6]} 28.
Ref1 {[%clk 0:04:17.8]} 28... Qd2 {[%clk 0:04:00.2]} 29. Rf7+ {[%clk 0:04:16.8]}
29... Kh8 {[%clk 0:03:59.2]} 30. Kb4 {[%clk 0:04:05.9]} 30... Qxb2+ {[%clk
0:03:53.4]} 31. Kc5 {[%clk 0:04:04.8]} 31... Qa3# {[%clk 0:03:52.4]} 0-1

[Event "Live Chess"]
[Site "Chess.com"]
[Date "2024.06.02"]
[Round "-"]
[White "ClassyChameleon"]
[Black "Bodhanas"]
[Result "0-1"]
[WhiteElo "1531"]
[BlackElo "2340"]
[TimeControl "300"]
[EndTime "4:25:54 PDT"]
[Termination "Bodhanas won on time"]

1. e4 {[%clk 0:04:59]} 1... c6 {[%clk 0:04:59]} 2. Nf3 {[%clk 0:04:58.7]} 2...
d5 {[%clk 0:04:57.9]} 3. e5 {[%clk 0:04:58.4]} 3... Bf5 {[%clk 0:04:56.1]} 4. d4
{[%clk 0:04:58.1]} 4... e6 {[%clk 0:04:54.5]} 5. Nc3 {[%clk 0:04:56.7]} 5... Nd7
{[%clk 0:04:53]} 6. Be2 {[%clk 0:04:54.9]} 6... Bb4 {[%clk 0:04:50]} 7. Bd2
{[%clk 0:04:52.7]} 7... Ne7 {[%clk 0:04:48.1]} 8. O-O {[%clk 0:04:51]} 8... Bxc3
{[%clk 0:04:46.7]} 9. Bxc3 {[%clk 0:04:50.1]} 9... O-O {[%clk 0:04:45.6]} 10. h3
{[%clk 0:04:39.3]} 10... c5 {[%clk 0:04:42.2]} 11. Nh2 {[%clk 0:04:33.3]} 11...
cxd4 {[%clk 0:04:40.3]} 12. Qxd4 {[%clk 0:04:31.3]} 12... Nc6 {[%clk 0:04:36.5]}
13. Qd2 {[%clk 0:04:23.2]} 13... Ndxe5 {[%clk 0:04:29.2]} 14. Bxe5 {[%clk
0:04:21.8]} 14... Nxe5 {[%clk 0:04:27.9]} 15. c3 {[%clk 0:04:20.6]} 15... Nc6
{[%clk 0:04:26.4]} 16. Bg4 {[%clk 0:04:16.8]} 16... Bxg4 {[%clk 0:04:24.7]} 17.
Nxg4 {[%clk 0:04:16.2]} 17... d4 {[%clk 0:04:22.8]} 18. cxd4 {[%clk 0:04:14.1]}
18... Qxd4 {[%clk 0:04:21.4]} 19. Qc2 {[%clk 0:03:55.7]} 19... Rac8 {[%clk
0:04:13.6]} 20. Rad1 {[%clk 0:03:52.5]} 20... Qb6 {[%clk 0:04:08.8]} 21. b3
{[%clk 0:03:36.2]} 21... Rfd8 {[%clk 0:04:04]} 22. Qe4 {[%clk 0:03:21.2]} 22...
Qb4 {[%clk 0:03:56]} 23. Qe3 {[%clk 0:02:40.2]} 23... a6 {[%clk 0:03:50.2]} 24.
Ne5 {[%clk 0:02:34.2]} 24... Nxe5 {[%clk 0:03:45.9]} 25. Rxd8+ {[%clk 0:02:33]}
25... Rxd8 {[%clk 0:03:44.3]} 26. Qxe5 {[%clk 0:02:32.5]} 26... h6 {[%clk
0:03:43.3]} 27. Qc7 {[%clk 0:02:29.4]} 27... Rd5 {[%clk 0:03:38.6]} 28. Qc2
{[%clk 0:01:51.3]} 28... Qc5 {[%clk 0:03:35.6]} 29. Qe2 {[%clk 0:01:24]} 29...
b5 {[%clk 0:03:31.5]} 30. Rd1 {[%clk 0:01:16.9]} 30... Rxd1+ {[%clk 0:03:27.3]}
31. Qxd1 {[%clk 0:01:16.6]} 31... Qd5 {[%clk 0:03:26.8]} 32. Qc2 {[%clk
0:01:13.7]} 32... Qd7 {[%clk 0:03:21.8]} 33. Qe4 {[%clk 0:01:03.7]} 33... Qd6
{[%clk 0:03:14.5]} 34. Qe3 {[%clk 0:00:32.1]} 34... Kh7 {[%clk 0:03:09.5]} 35.
h4 {[%clk 0:00:27.6]} 35... f5 {[%clk 0:03:04.3]} 36. g3 {[%clk 0:00:26.1]}
36... Kg6 {[%clk 0:02:56.4]} 37. Qe2 {[%clk 0:00:19.6]} 37... Kf6 {[%clk
0:02:52.3]} 38. Qh5 {[%clk 0:00:14.9]} 38... Qd7 {[%clk 0:02:45.4]} 39. g4
{[%clk 0:00:12.2]} 39... fxg4 {[%clk 0:02:44]} 40. Qxg4 {[%clk 0:00:11.9]} 40...
g5 {[%clk 0:02:43.1]} 41. hxg5+ {[%clk 0:00:09.9]} 41... hxg5 {[%clk 0:02:41.8]}
42. Qf3+ {[%clk 0:00:07.5]} 42... Ke7 {[%clk 0:02:40.2]} 43. Qa8 {[%clk
0:00:04.5]} 43... Qd1+ {[%clk 0:02:38.1]} 44. Kg2 {[%clk 0:00:03.3]} 44... Qd6
{[%clk 0:02:34.8]} 45. Qb7+ {[%clk 0:00:01.6]} 45... Kf6 {[%clk 0:02:33.1]} 0-1

[Event "Live Chess"]
[Site "Chess.com"]
[Date "2024.06.02"]
[Round "-"]
[White "friarnator"]
[Black "booktrunk"]
[Result "1-0"]
[WhiteElo "2184"]
[BlackElo "1491"]
[TimeControl "300"]
[EndTime "4:26:42 PDT"]
[Termination "friarnator won by checkmate"]

1. d4 {[%clk 0:04:58]} 1... b6 {[%clk 0:04:54.8]} 2. Nc3 {[%clk 0:04:54]} 2...
Bb7 {[%clk 0:04:32]} 3. e4 {[%clk 0:04:52.1]} 3... h6 {[%clk 0:04:29.5]} 4. f3
{[%clk 0:04:50.9]} 4... a6 {[%clk 0:04:28]} 5. Be3 {[%clk 0:04:50]} 5... e6
{[%clk 0:04:26.1]} 6. Qd2 {[%clk 0:04:47.9]} 6... Be7 {[%clk 0:04:23.3]} 7.
O-O-O {[%clk 0:04:47]} 7... Bg5 {[%clk 0:04:21.7]} 8. f4 {[%clk 0:04:44.9]} 8...
Be7 {[%clk 0:04:18.7]} 9. Nf3 {[%clk 0:04:44.3]} 9... d6 {[%clk 0:04:17.1]} 10.
Kb1 {[%clk 0:04:35.7]} 10... Bc6 {[%clk 0:04:12.6]} 11. d5 {[%clk 0:04:33.3]}
11... exd5 {[%clk 0:04:11.4]} 12. exd5 {[%clk 0:04:31.2]} 12... Bd7 {[%clk
0:04:10]} 13. Bd4 {[%clk 0:04:30.4]} 13... Nf6 {[%clk 0:04:07.8]} 14. Bd3 {[%clk
0:04:28.1]} 14... O-O {[%clk 0:04:05.8]} 15. h3 {[%clk 0:04:25.8]} 15... c5
{[%clk 0:04:04.6]} 16. dxc6 {[%clk 0:04:21.4]} 16... Bxc6 {[%clk 0:04:03.5]} 17.
Rdf1 {[%clk 0:04:16.5]} 17... Bd7 {[%clk 0:03:58.7]} 18. g4 {[%clk 0:04:15.3]}
18... Nc6 {[%clk 0:03:57]} 19. g5 {[%clk 0:04:14.2]} 19... hxg5 {[%clk
0:03:53.5]} 20. Bxf6 {[%clk 0:03:59.5]} 20... gxf6 {[%clk 0:03:48.3]} 21. fxg5
{[%clk 0:03:50.3]} 21... fxg5 {[%clk 0:03:46.6]} 22. Rfg1 {[%clk 0:03:35.4]}
22... f6 {[%clk 0:03:42.2]} 23. Qe2 {[%clk 0:03:31.4]} 23... Ne5 {[%clk
0:03:41.2]} 24. Qe4 {[%clk 0:03:27.6]} 24... Nxd3 {[%clk 0:03:37.9]} 25. Qg6+
{[%clk 0:03:23.6]} 25... Kh8 {[%clk 0:03:35.8]} 26. Qh6+ {[%clk 0:03:18.9]}
26... Kg8 {[%clk 0:03:34.1]} 27. Qg6+ {[%clk 0:03:18.8]} 27... Kh8 {[%clk
0:03:32.8]} 28. cxd3 {[%clk 0:03:18.7]} 28... Qe8 {[%clk 0:03:25.9]} 29. Qh6+
{[%clk 0:03:16.1]} 29... Kg8 {[%clk 0:03:24.3]} 30. Ne4 {[%clk 0:03:08.6]} 30...
Bf5 {[%clk 0:03:22.4]} 31. Nfxg5 {[%clk 0:02:57.7]} 31... fxg5 {[%clk
0:03:17.1]} 32. Nxg5 {[%clk 0:02:56.3]} 32... Bxg5 {[%clk 0:03:14.5]} 33. Rxg5+
{[%clk 0:02:54.5]} 33... Bg6 {[%clk 0:03:08.1]} 34. Rxg6+ {[%clk 0:02:53]} 34...
Kf7 {[%clk 0:03:00.3]} 35. Rg7# {[%clk 0:02:51.3]} 1-0

[Event "Live Chess"]
[Site "Chess.com"]
[Date "2024.06.02"]
[Round "-"]
[White "Crowded_House"]
[Black "Zhevzh1k7"]
[Result "1-0"]
[WhiteElo "1662"]
[BlackElo "1106"]
[TimeControl "300"]
[EndTime "4:27:16 PDT"]
[Termination "Crowded_House won by checkmate"]

1. d4 {[%clk 0:04:57.4]} 1... Nf6 {[%clk 0:04:56.8]} 2. Bg5 {[%clk 0:04:56.8]}
2... e6 {[%clk 0:04:55]} 3. e3 {[%clk 0:04:55.6]} 3... h6 {[%clk 0:04:52]} 4.
Bh4 {[%clk 0:04:54]} 4... d5 {[%clk 0:04:49.5]} 5. Bd3 {[%clk 0:04:52]} 5...
Nbd7 {[%clk 0:04:47.9]} 6. Nd2 {[%clk 0:04:51.5]} 6... Be7 {[%clk 0:04:46.4]} 7.
c3 {[%clk 0:04:50.7]} 7... c6 {[%clk 0:04:37.6]} 8. Ngf3 {[%clk 0:04:49.7]} 8...
O-O {[%clk 0:04:36.4]} 9. O-O {[%clk 0:04:47.2]} 9... Nb6 {[%clk 0:04:30.1]} 10.
Qc2 {[%clk 0:04:43.3]} 10... Nfd7 {[%clk 0:04:23.6]} 11. Bxe7 {[%clk 0:04:41.2]}
11... Qxe7 {[%clk 0:04:22.8]} 12. Rfe1 {[%clk 0:04:40]} 12... c5 {[%clk
0:04:21.7]} 13. dxc5 {[%clk 0:04:35.4]} 13... Nxc5 {[%clk 0:04:19.8]} 14. Be2
{[%clk 0:04:34.9]} 14... Ncd7 {[%clk 0:04:10.6]} 15. Nb3 {[%clk 0:04:31]} 15...
Nf6 {[%clk 0:04:08.4]} 16. Red1 {[%clk 0:04:17.2]} 16... Bd7 {[%clk 0:04:04.4]}
17. Bd3 {[%clk 0:04:09.1]} 17... Rac8 {[%clk 0:03:46.8]} 18. Ne5 {[%clk
0:04:07.4]} 18... Nc4 {[%clk 0:03:39.8]} 19. Nxd7 {[%clk 0:03:52.6]} 19... Nxd7
{[%clk 0:03:35.3]} 20. Bxc4 {[%clk 0:03:49]} 20... dxc4 {[%clk 0:03:31.3]} 21.
Nd4 {[%clk 0:03:42.1]} 21... Nb6 {[%clk 0:03:23.7]} 22. Nf3 {[%clk 0:03:40]}
22... Rfd8 {[%clk 0:03:21.4]} 23. Rxd8+ {[%clk 0:03:38.1]} 23... Rxd8 {[%clk
0:03:19.8]} 24. Rd1 {[%clk 0:03:37.2]} 24... Rxd1+ {[%clk 0:03:15.7]} 25. Qxd1
{[%clk 0:03:36.8]} 25... Qd7 {[%clk 0:03:11.5]} 26. Qxd7 {[%clk 0:03:34.5]}
26... Nxd7 {[%clk 0:03:09.5]} 27. Nd4 {[%clk 0:03:32.9]} 27... Kf8 {[%clk
0:03:03.5]} 28. Kf1 {[%clk 0:03:23]} 28... Ke7 {[%clk 0:03:02.1]} 29. Ke2 {[%clk
0:03:20.1]} 29... e5 {[%clk 0:02:55.6]} 30. Nf5+ {[%clk 0:03:15.3]} 30... Kf6
{[%clk 0:02:53.6]} 31. Nd6 {[%clk 0:03:13.8]} 31... b6 {[%clk 0:02:51.7]} 32.
Ne8+ {[%clk 0:03:06.4]} 32... Kf5 {[%clk 0:02:47.3]} 33. Nxg7+ {[%clk
0:03:04.4]} 33... Kg6 {[%clk 0:02:46.1]} 34. Ne8 {[%clk 0:03:01.9]} 34... f5
{[%clk 0:02:38.8]} 35. Nd6 {[%clk 0:02:56.7]} 35... Nc5 {[%clk 0:02:26.1]} 36.
Nxc4 {[%clk 0:02:54.4]} 36... b5 {[%clk 0:02:23]} 37. Nxe5+ {[%clk 0:02:52]}
37... Kf6 {[%clk 0:02:21.1]} 38. Nc6 {[%clk 0:02:48.5]} 38... a6 {[%clk
0:02:19.2]} 39. b4 {[%clk 0:02:40.1]} 39... Na4 {[%clk 0:02:15.4]} 40. Kd2
{[%clk 0:02:34]} 40... Ke6 {[%clk 0:02:10.5]} 41. Nb8 {[%clk 0:02:33.5]} 41...
Kd5 {[%clk 0:02:06.1]} 42. Nxa6 {[%clk 0:02:32]} 42... Kc4 {[%clk 0:02:05]} 43.
f3 {[%clk 0:02:16.6]} 43... Nxc3 {[%clk 0:02:02.9]} 44. g3 {[%clk 0:02:11.1]}
44... Nxa2 {[%clk 0:02:00.8]} 45. e4 {[%clk 0:02:07.9]} 45... Nxb4 {[%clk
0:01:57.5]} 46. Nxb4 {[%clk 0:02:01.5]} 46... Kxb4 {[%clk 0:01:56.8]} 47. exf5
{[%clk 0:02:00]} 47... Ka3 {[%clk 0:01:56.4]} 48. f6 {[%clk 0:01:58]} 48... b4
{[%clk 0:01:56]} 49. f7 {[%clk 0:01:57.6]} 49... b3 {[%clk 0:01:55.5]} 50. f8=Q+
{[%clk 0:01:57.1]} 50... Kb2 {[%clk 0:01:54.1]} 51. Qf6+ {[%clk 0:01:54.1]}
51... Ka2 {[%clk 0:01:52.7]} 52. Kc3 {[%clk 0:01:48.5]} 52... b2 {[%clk
0:01:49]} 53. Qa6+ {[%clk 0:01:45.9]} 53... Kb1 {[%clk 0:01:47.9]} 54. Qb5
{[%clk 0:01:44.1]} 54... Kc1 {[%clk 0:01:44.4]} 55. Qxb2+ {[%clk 0:01:43.5]}
55... Kd1 {[%clk 0:01:44]} 56. Qd2# {[%clk 0:01:42.6]} 1-0

[Event "Live Chess"]
[Site "Chess.com"]
[Date "2024.06.02"]
[Round "-"]
[White "matt1979"]
[Black "RamsayFlayer"]
[Result "0-1"]
[WhiteElo "1408"]
[BlackElo "1925"]
[TimeControl "300"]
[EndTime "4:27:58 PDT"]
[Termination "RamsayFlayer won by resignation"]

1. f4 {[%clk 0:04:58.3]} 1... d5 {[%clk 0:04:57.5]} 2. e3 {[%clk 0:04:57]} 2...
Nc6 {[%clk 0:04:56.4]} 3. Bb5 {[%clk 0:04:55.2]} 3... Bd7 {[%clk 0:04:54.2]} 4.
Nf3 {[%clk 0:04:54.4]} 4... a6 {[%clk 0:04:52.9]} 5. Bxc6 {[%clk 0:04:53.1]}
5... Bxc6 {[%clk 0:04:52.1]} 6. Ne5 {[%clk 0:04:52.4]} 6... Qd6 {[%clk
0:04:51.4]} 7. O-O {[%clk 0:04:51.3]} 7... Nf6 {[%clk 0:04:49.1]} 8. d3 {[%clk
0:04:49.4]} 8... Nd7 {[%clk 0:04:47.8]} 9. b3 {[%clk 0:04:47.6]} 9... Nxe5
{[%clk 0:04:44.7]} 10. fxe5 {[%clk 0:04:46.1]} 10... Qxe5 {[%clk 0:04:44.5]} 11.
c3 {[%clk 0:04:41.7]} 11... O-O-O {[%clk 0:04:38.5]} 12. d4 {[%clk 0:04:39.3]}
12... Qe6 {[%clk 0:04:29.8]} 13. Nd2 {[%clk 0:04:34.7]} 13... g6 {[%clk
0:04:27.8]} 14. Nf3 {[%clk 0:04:33.8]} 14... Bh6 {[%clk 0:04:25.2]} 15. Ne5
{[%clk 0:04:30.8]} 15... f6 {[%clk 0:04:17.3]} 16. Ng4 {[%clk 0:04:25.9]} 16...
Bg7 {[%clk 0:04:04.5]} 17. Qe2 {[%clk 0:04:13.5]} 17... h5 {[%clk 0:04:03.1]}
18. Nf2 {[%clk 0:04:12.6]} 18... Bh6 {[%clk 0:04:00]} 19. c4 {[%clk 0:04:08.7]}
19... f5 {[%clk 0:03:50]} 20. Bd2 {[%clk 0:03:58.1]} 20... f4 {[%clk 0:03:46.5]}
21. cxd5 {[%clk 0:03:44.6]} 21... Bxd5 {[%clk 0:03:42.8]} 22. Rfe1 {[%clk
0:03:37.8]} 22... Qf6 {[%clk 0:03:01.1]} 23. Rac1 {[%clk 0:03:28.9]} 23... f3
{[%clk 0:02:55.3]} 24. gxf3 {[%clk 0:03:22.1]} 24... Bxf3 {[%clk 0:02:53.9]} 25.
Qf1 {[%clk 0:03:21.1]} 25... Qg5+ {[%clk 0:02:49.9]} 0-1

[Event "Live Chess"]
[Site "Chess.com"]
[Date "2024.06.02"]
[Round "-"]
[White "Velocity"]
[Black "CarmelJane"]
[Result "0-1"]
[WhiteElo "1713"]
[BlackElo "2050"]
[TimeControl "300"]
[EndTime "4:28:09 PDT"]
[Termination "CarmelJane won by checkmate"]

1. e4 {[%clk 0:04:59.5]} 1... c5 {[%clk 0:04:57.1]} 2. Nf3 {[%clk 0:04:58.7]}
2... e6 {[%clk 0:04:56.1]} 3. d4 {[%clk 0:04:56.6]} 3... cxd4 {[%clk 0:04:56]}
4. Nxd4 {[%clk 0:04:56.1]} 4... Nf6 {[%clk 0:04:55.4]} 5. Nc3 {[%clk 0:04:54.5]}
5... Nc6 {[%clk 0:04:54.8]} 6. Be3 {[%clk 0:04:53.1]} 6... Bb4 {[%clk
0:04:51.4]} 7. Qd2 {[%clk 0:04:42.5]} 7... d5 {[%clk 0:04:47.5]} 8. exd5 {[%clk
0:04:39.9]} 8... Nxd5 {[%clk 0:04:44.8]} 9. Nb3 {[%clk 0:04:26]} 9... O-O {[%clk
0:04:24.2]} 10. Bc4 {[%clk 0:04:04]} 10... Nxe3 {[%clk 0:03:20.9]} 11. Qxe3
{[%clk 0:03:57.5]} 11... Qh4 {[%clk 0:03:14.5]} 12. Bd3 {[%clk 0:03:32.8]} 12...
e5 {[%clk 0:02:45.2]} 13. O-O {[%clk 0:03:23.3]} 13... Be6 {[%clk 0:02:40.1]}
14. Be4 {[%clk 0:02:55.6]} 14... f5 {[%clk 0:02:06.8]} 15. Bxc6 {[%clk 0:02:52]}
15... bxc6 {[%clk 0:01:55.2]} 16. Qxe5 {[%clk 0:02:51.1]} 16... Rae8 {[%clk
0:01:34.4]} 17. Qg3 {[%clk 0:02:42.5]} 17... Qf6 {[%clk 0:01:21.9]} 18. Na4
{[%clk 0:02:31.7]} 18... f4 {[%clk 0:01:18.5]} 19. Qd3 {[%clk 0:02:23.3]} 19...
Qg5 {[%clk 0:00:58.2]} 20. c3 {[%clk 0:02:18.2]} 20... f3 {[%clk 0:00:50.4]} 21.
g3 {[%clk 0:02:09.4]} 21... Qh5 {[%clk 0:00:49]} 22. Rfe1 {[%clk 0:02:02.2]}
22... Ba5 {[%clk 0:00:31.4]} 23. Nxa5 {[%clk 0:01:58.9]} 23... Qxa5 {[%clk
0:00:31.3]} 24. b3 {[%clk 0:01:54.6]} 24... Qh5 {[%clk 0:00:23.9]} 25. Nc5
{[%clk 0:01:50.7]} 25... Qxc5 {[%clk 0:00:21.7]} 26. b4 {[%clk 0:01:49.9]} 26...
Qh5 {[%clk 0:00:21]} 27. Qf1 {[%clk 0:01:47.8]} 27... Bf5 {[%clk 0:00:18.4]} 28.
Red1 {[%clk 0:01:45.1]} 28... Qg6 {[%clk 0:00:16]} 29. Rd4 {[%clk 0:01:43.8]}
29... Bc2 {[%clk 0:00:14.7]} 30. Rc1 {[%clk 0:01:42.5]} 30... Re2 {[%clk
0:00:13.7]} 31. Rf4 {[%clk 0:01:40]} 31... Rfe8 {[%clk 0:00:13]} 32. Qh3 {[%clk
0:01:37.4]} 32... Re1+ {[%clk 0:00:12]} 33. Qf1 {[%clk 0:01:36.2]} 33... Rxf1+
{[%clk 0:00:11.3]} 34. Rxf1 {[%clk 0:01:36.1]} 34... Qe6 {[%clk 0:00:10]} 35. h4
{[%clk 0:01:32.6]} 35... Bd3 {[%clk 0:00:09.1]} 36. Rd1 {[%clk 0:01:30.7]} 36...
Qe2 {[%clk 0:00:08.7]} 37. Ra1 {[%clk 0:01:29.4]} 37... Bc4 {[%clk 0:00:08.1]}
38. Rxc4 {[%clk 0:01:27.6]} 38... Qxc4 {[%clk 0:00:06]} 39. a4 {[%clk
0:01:26.6]} 39... Qe2 {[%clk 0:00:05.9]} 40. Kh2 {[%clk 0:01:25.4]} 40... Rd8
{[%clk 0:00:05.8]} 41. h5 {[%clk 0:01:24.1]} 41... Rd2 {[%clk 0:00:05.7]} 42.
Kh3 {[%clk 0:01:21.4]} 42... Qxf2 {[%clk 0:00:05.4]} 43. Kg4 {[%clk 0:01:20.7]}
43... Qg2 {[%clk 0:00:04.8]} 44. Kf4 {[%clk 0:01:19.8]} 44... f2 {[%clk
0:00:04.7]} 45. Ra3 {[%clk 0:01:18.1]} 45... f1=Q+ {[%clk 0:00:04.6]} 46. Ke3
{[%clk 0:01:17.1]} 46... Qff2# {[%clk 0:00:03.8]} 0-1

[Event "Live Chess"]
[Site "Chess.com"]
[Date "2024.06.02"]
[Round "-"]
[White "KyryloPoluliakh"]
[Black "GwaryTek"]
[Result "0-1"]
[WhiteElo "1527"]
[BlackElo "1843"]
[TimeControl "300"]
[EndTime "4:28:09 PDT"]
[Termination "GwaryTek won by checkmate"]

1. c4 {[%clk 0:04:57.8]} 1... Nf6 {[%clk 0:04:56.9]} 2. Nc3 {[%clk 0:04:56.6]}
2... c6 {[%clk 0:04:56]} 3. g3 {[%clk 0:04:56.1]} 3... d5 {[%clk 0:04:55.5]} 4.
cxd5 {[%clk 0:04:54]} 4... cxd5 {[%clk 0:04:54.1]} 5. d4 {[%clk 0:04:52.7]} 5...
Nc6 {[%clk 0:04:52.6]} 6. Bg2 {[%clk 0:04:51.4]} 6... Bf5 {[%clk 0:04:46.5]} 7.
a3 {[%clk 0:04:46]} 7... e6 {[%clk 0:04:45]} 8. e3 {[%clk 0:04:43.5]} 8... Bd6
{[%clk 0:04:33.4]} 9. Nge2 {[%clk 0:04:39.5]} 9... O-O {[%clk 0:04:31.8]} 10.
O-O {[%clk 0:04:37.1]} 10... Rc8 {[%clk 0:04:30.3]} 11. b4 {[%clk 0:04:32.4]}
11... a6 {[%clk 0:04:21.3]} 12. Bb2 {[%clk 0:04:28.1]} 12... Re8 {[%clk
0:04:13.6]} 13. b5 {[%clk 0:04:18.2]} 13... Na5 {[%clk 0:04:07.9]} 14. Rc1
{[%clk 0:04:01.2]} 14... Nc4 {[%clk 0:04:02.7]} 15. Qb3 {[%clk 0:03:51.7]} 15...
Nd2 {[%clk 0:03:43.9]} 16. Qd1 {[%clk 0:03:43.5]} 16... Nxf1 {[%clk 0:03:38.7]}
17. Bxf1 {[%clk 0:03:42.7]} 17... Qa5 {[%clk 0:03:31]} 18. Qb3 {[%clk
0:03:32.7]} 18... Bd3 {[%clk 0:03:14.3]} 19. Nf4 {[%clk 0:03:28.1]} 19... Bxf1
{[%clk 0:03:11.7]} 20. Kxf1 {[%clk 0:03:26.3]} 20... Bxf4 {[%clk 0:03:06]} 21.
gxf4 {[%clk 0:03:25.6]} 21... axb5 {[%clk 0:03:04]} 22. Nxb5 {[%clk 0:03:20.4]}
22... Rxc1+ {[%clk 0:03:00]} 23. Bxc1 {[%clk 0:03:17.1]} 23... Rc8 {[%clk
0:02:56.7]} 24. Bb2 {[%clk 0:03:14]} 24... Ne4 {[%clk 0:02:51.4]} 25. Kg2 {[%clk
0:02:58.2]} 25... Qd2 {[%clk 0:02:39.6]} 26. Nc3 {[%clk 0:02:29.2]} 26... Qxf2+
{[%clk 0:02:16]} 27. Kh3 {[%clk 0:02:26.8]} 27... Qxe3+ {[%clk 0:02:02.4]} 28.
Kg4 {[%clk 0:02:22.6]} 28... f5+ {[%clk 0:01:57.1]} 29. Kh4 {[%clk 0:02:21]}
29... Qxf4+ {[%clk 0:01:55.4]} 30. Kh3 {[%clk 0:02:16.7]} 30... Qf3+ {[%clk
0:01:47.5]} 31. Kh4 {[%clk 0:02:14.8]} 31... Qg4# {[%clk 0:01:47.4]} 0-1